[Event "67th Mexican-ch Open 2022"]
[Site "Chihuahua"]
[Date "2022.04.14"]
[Round "3.18"]
[White "Kowalski Davila, Emilio Luis"]
[Black "Capo Vidal, Uriel"]
[Result "1-0"]
[ECO "D31"]
[WhiteElo "1735"]
[BlackElo "2306"]
[Annotator "TA"]
[PlyCount "115"]
[EventDate "2022.04.12"]
[EventType "swiss"]
[EventCountry "MEX"]
[SourceTitle "playchess.com"]
[Source "ChessBase"]
[SourceQuality "1"]
[TimeControl "5400+30"]

{[%evp 9,115,5,23,18,23,20,23,31,21,33,19,1,33,33,33,31,34,41,95,0,0,0,0,0,172,165,177,171,164,134,136,126,127,75,84,49,34,49,44,21,42,-8,-8,-113,-41,-60,-29,-23,-14,-1,0,-79,-67,-76,-56,-68,-56,-84,-8,-8,0,-8,-8,-17,-6,-56,-8,-49,101,101,101,101,101,101,101,101,96,0,6,0,0,0,372,350,509,517,513,486,507,477,897,895,884,854,781,769,737,724,1024,1032,29983,29984,29984,29985,29985,29986,2040,2040]} 1. d4 {[%emt 0:03:57]} d5 {[%emt 0:01:34]} 2. c4 {[%emt 0:00:08]} e6 {[%emt 0:00:09]} 3. Nc3 {[%emt 0:00:17]} a6 {[%emt 0:00:13]} 4. e3 {[%emt 0:00:17]} Nf6 {[%emt 0:00:26]} 5. Nf3 {[%emt 0:01:18]} Be7 {[%emt 0:06:26]} 6. b3 {[%emt 0:00:56] D31: Queen's Gambit Declined: Semi-Slav without ...Nf6 (+ Marshall Gambit and Noteboom) and Exchange Variation lines without ...Nf6.} b6 {[%emt 0:02:08]} 7. Bd3 {[%emt 0:01:55]} Bb7 {[%emt 0:02:13]} 8. O-O {[%emt 0:00:37] White has an edge.} Nbd7 {[%emt 0:02:48]} 9. Bb2 {[%emt 0:01:28]} O-O {[%emt 0:01:17]} 10. Re1 {[%emt 0:01:28] [#]} Ne4 $146 {[%emt 0:04:32]} ({Predecessor:} 10... c5 11. Rc1 Rc8 12. Qe2 Bd6 13. cxd5 Nxd5 14. Nxd5 exd5 15. dxc5 Nxc5 16. Bf5 Rc7 17. Bd4 b5 18. b4 Ne4 19. Bb6 Qe7 20. Bxc7 Bxc7 {½-½ (44) Chernov,I (2073)-Okrugin,A (2061) Zelenograd 2012}) 11. Qc2 {[%emt 0:02:44]} f5 {[%emt 0:00:17]} 12. Ne2 {[%emt 0:04:18]} Bd6 {[%emt 0:04:17]} 13. Ne5 {[%emt 0:02:00]} Rf6 {[%emt 0:09:30]} (13... Qe7 $14) 14. Bxe4 {[%emt 0:18:16]} ({White should try} 14. cxd5 $16 exd5 15. f3) 14... fxe4 $11 {[%emt 0:03:16]} 15. c5 {[%emt 0:02:33]} bxc5 {[%emt 0:19:42]} 16. Nxd7 {[%emt 0:00:35][%mdl 64] [#] Remove Defender} Qxd7 {[%emt 0:03:51]} (16... Bxh2+ $1 $11 17. Kxh2 Rh6+ 18. Kg1 Qh4) 17. dxc5 $18 {[%emt 0:00:26]} Be7 {[%emt 0:02:56]} 18. Bxf6 {[%emt 0:00:27]} Bxf6 {[%emt 0:00:29]} 19. Rac1 {[%emt 0:00:23] c6 is the strong threat.} c6 {[%emt 0:00:10]} 20. Red1 {[%emt 0:00:40][%cal Oc2e4]} Qe8 {[%emt 0:03:31]} 21. Ng3 {[%emt 0:10:16]} (21. b4 $142) 21... a5 {[%emt 0:01:50]} 22. f3 {[%emt 0:03:41]} exf3 {[%emt 0:01:07]} 23. gxf3 {[%emt 0:00:10]} Bc8 {[%emt 0:04:58]} 24. Kg2 {[%emt 0:02:53]} Rb8 {[%emt 0:02:35]} 25. a4 {[%emt 0:07:38]} (25. Rg1 $14) 25... e5 $11 {[%emt 0:00:50]} 26. Kf2 {[%emt 0:04:36]} (26. e4 $11 {remains equal.} d4 27. Rb1) 26... Qe6 {[%emt 0:02:24]} (26... Bg5 $17 {And now ...Qf7 would win.} 27. Qc3 Bh3) 27. Rb1 $15 {[%emt 0:00:54]} Rb4 {[%emt 0:00:32][%mdl 1024] Black has compensation.} 28. e4 {[%emt 0:01:11]} Qh3 {[%emt 0:00:34]} 29. Kg1 {[%emt 0:00:52]} d4 {[%emt 0:00:03]} 30. Qd3 {[%emt 0:01:19]} (30. Qg2 $11) 30... Bg5 $17 {[%emt 0:00:34]} 31. Kh1 {[%emt 0:01:32]} Be3 {[%emt 0:00:54] Prevents Rg1.} (31... g6 $5 {[%cal Rg5f4]}) 32. Rb2 {[%emt 0:00:32]} h5 {[%emt 0:03:07] [#] aiming for ...h4.} 33. Qf1 {[%emt 0:02:02]} Qxf1+ {[%emt 0:08:03]} (33... h4 $17 34. Qxh3 Bxh3) 34. Nxf1 $11 {[%emt 0:00:25]} Bg5 {[%emt 0:00:30]} 35. Kg2 {[%emt 0:05:24]} Be6 {[%emt 0:01:19]} 36. Rdb1 {[%emt 0:00:51]} h4 {[%emt 0:02:03]} 37. Kf2 {[%emt 0:00:11]} (37. h3 $11) 37... Kf7 {[%emt 0:00:22]} (37... Bf4 $1 $15 {should be considered.}) 38. Ke2 {[%emt 0:00:22]} Be7 {[%emt 0:00:33]} (38... Bf4 $15 {stays ahead.}) 39. Nd2 $16 {[%emt 0:00:27]} Bc8 {[%emt 0:03:37]} 40. Nc4 {[%emt 0:01:32]} Ba6 {[%emt 0:00:01]} 41. Rc2 {[%emt 0:00:29]} Ke6 {[%emt 0:00:51]} 42. Kd2 {[%emt 0:02:27]} Bg5+ {[%emt 0:00:07]} 43. Kd3 {[%emt 0:00:11]} (43. Kd1 $16 Bd8 44. Kc1) 43... Be7 {[%emt 0:00:17]} 44. h3 {[%emt 0:00:53]} Bxc5 {[%emt 0:01:08]} 45. Kd2 {[%emt 0:00:29]} Be7 $2 {[%emt 0:00:28][%mdl 8192]} (45... Rb8 $11 {and Black is okay.}) 46. Nxa5 $18 {[%emt 0:01:31]} Bg5+ {[%emt 0:01:18]} (46... c5 $142 47. Rg1 c4 48. Rxg7 Bf6) 47. Ke1 {[%emt 0:01:26]} Rb6 {[%emt 0:02:29]} 48. Rxc6+ {[%emt 0:00:59]} Rxc6 {[%emt 0:00:01]} 49. Nxc6 {[%emt 0:00:16][%mdl 4096] Endgame Threatens to win with b4. KRN-KB} Bf4 {[%emt 0:02:06]} (49... Kd6 $142 50. Nb4 Bc8) 50. Nb4 {[%emt 0:00:38]} Bg3+ {[%emt 0:00:00]} 51. Kd2 {[%emt 0:00:23]} Bf4+ {[%emt 0:00:02]} 52. Kd1 {[%emt 0:01:32]} Bf1 {[%emt 0:00:01]} 53. Kc2 {[%emt 0:00:27]} Be2 {[%emt 0:00:01]} 54. a5 {[%emt 0:01:33][%cal Ba4a5,Ba5a6,Ba6a7][%mdl 32]} Bxf3 {[%emt 0:00:56]} 55. Kd3 {[%emt 0:00:16]} Bh5 {[%emt 0:00:01]} 56. a6 {[%emt 0:00:38]} Be8 {[%emt 0:00:06]} 57. a7 {[%emt 0:00:29]} Bb5+ {[%emt 0:00:05]} 58. Kc2 {[%emt 0:13:22] Weighted Error Value: White=0.19 (very precise) /Black=0.55} 1-0

[Event "67th Mexican-ch Open 2022"]
[Site "Chihuahua"]
[Date "2022.04.14"]
[Round "3.19"]
[White "Tapie Amione, Pablo Adib"]
[Black "Contreras Frias, Gabriel"]
[Result "1-0"]
[ECO "B07"]
[WhiteElo "2241"]
[BlackElo "1771"]
[Annotator "TA"]
[PlyCount "59"]
[EventDate "2022.04.12"]
[EventType "swiss"]
[EventCountry "MEX"]
[SourceTitle "playchess.com"]
[Source "ChessBase"]
[SourceQuality "1"]
[TimeControl "5400+30"]

{[%evp 9,59,14,40,20,24,13,18,0,11,4,7,-38,-21,-38,0,-19,-11,-46,-39,-39,12,2,61,0,49,11,91,80,97,104,99,77,242,238,443,72,83,90,225,222,305,300,353,333,343,349,342,352,533,533,575,575]} 1. e4 {[%emt 0:12:27]} d6 {[%emt 0:00:41]} 2. d4 {[%emt 0:00:07]} Nf6 {[%emt 0:00:06]} 3. Nc3 {[%emt 0:00:08]} g6 {[%emt 0:00:06]} 4. h3 {[%emt 0:03:42]} Bg7 {[%emt 0:01:49]} 5. Be3 {[%emt 0:00:20]} Nbd7 {[%emt 0:02:41]} 6. Nge2 {[%emt 0:04:49] B07: Pirc Defence: Miscellaneous Systems.} O-O {[%emt 0:06:15][%cal Ob7b5]} 7. g4 {[%emt 0:00:48] [#]} b5 $146 {[%emt 0:06:06]} ({Predecessor:} 7... c5 8. Bg2 cxd4 9. Bxd4 Ne5 10. O-O Nc4 11. g5 Nh5 12. Bxg7 Nxg7 13. b3 Nb6 {½-½ (63) Brandenburg,D (2538)-Vovk,A (2551) Shenzhen 2011}) 8. a3 {[%emt 0:01:08] The position is equal.} c5 {[%emt 0:02:41]} 9. Bg2 {[%emt 0:02:04][%cal Oe4e5] [#] e5! is the strong threat.} Bb7 {[%emt 0:15:23]} 10. Ng3 {[%emt 0:07:49]} (10. O-O $5 {[%cal Re4e5]}) 10... a6 {[%emt 0:03:25]} 11. O-O {[%emt 0:09:26][%cal Oe4e5] Black must now prevent e5!} Qc7 {[%emt 0:04:36]} 12. g5 {[%emt 0:03:37]} Ne8 {[%emt 0:02:08]} 13. Nce2 {[%emt 0:10:14]} (13. Nd5 $5 {[%cal Rd5c7]} Qd8 14. c3 $11) 13... Nb6 {[%emt 0:02:24]} 14. b3 {[%emt 0:01:12]} a5 {[%emt 0:08:04]} (14... cxd4 $15 15. Bxd4 Bxd4 16. Qxd4 Ng7) 15. Qd2 {[%emt 0:08:50]} b4 {[%emt 0:17:03]} (15... f5 $11) 16. Rfc1 {[%emt 0:03:17]} (16. axb4 $14 axb4 17. Rxa8 Bxa8 18. f4) 16... Nd7 {[%emt 0:02:39]} (16... bxa3 $11 17. Rxa3 a4) 17. c3 {[%emt 0:04:23]} bxa3 {[%emt 0:03:16]} (17... bxc3 $1 $11 {remains equal.} 18. Qxc3 (18. Nxc3 cxd4 19. Bxd4 Bxd4 $11) (18. Rxc3 Qb8 $11) 18... cxd4 19. Nxd4 (19. Qxc7 Nxc7 20. Bxd4 Rfc8 $15) 19... Qxc3 20. Rxc3 f5 21. gxf6 (21. exf5 Bxg2 22. Kxg2 gxf5 $11) 21... Bxf6) 18. Rxa3 $16 {[%emt 0:00:32]} c4 {[%emt 0:01:58]} 19. Qa2 {[%emt 0:00:26]} Nb6 {[%emt 0:01:25]} 20. Rb1 {[%emt 0:01:21]} Rb8 $2 {[%emt 0:05:56] [#]} (20... Ba6 $16 {is a better defense.}) 21. Rxa5 $18 {[%emt 0:01:44]} Ra8 $2 {[%emt 0:02:38]} (21... e5 22. dxe5 Nd7 23. bxc4 dxe5) 22. d5 $2 {[%emt 0:03:32]} (22. Rxa8 $18 {has better winning chances.} Bxa8 23. bxc4) 22... Rxa5 $16 {[%emt 0:05:37]} 23. Qxa5 {[%emt 0:00:06]} Nd7 {[%emt 0:00:04]} (23... Nxd5 $16 24. Qxc7 Ndxc7) 24. Qb5 {[%emt 0:03:06]} Nc5 {[%emt 0:01:27]} 25. b4 {[%emt 0:06:40]} ({Weaker is} 25. bxc4 Ba6 26. Qb4 f6 $18) 25... Ba6 {[%emt 0:02:15]} 26. Qc6 {[%emt 0:00:02]} Qxc6 {[%emt 0:00:36]} 27. dxc6 {[%emt 0:00:01]} Nb3 {[%emt 0:00:28]} 28. Bb6 {[%emt 0:01:07] Prevents Nc7.} d5 {[%emt 0:01:35]} (28... h6 {was necessary.} 29. h4 hxg5 30. hxg5 Bh8) 29. Bd8 $18 {[%emt 0:00:23]} e6 {[%emt 0:00:52]} 30. exd5 {[%emt 0:00:22] Weighted Error Value: White=0.48/Black=0.48} 1-0

[Event "67th Mexican-ch Open 2022"]
[Site "Chihuahua"]
[Date "2022.04.14"]
[Round "3.20"]
[White "Serrato, Rafael Antonio"]
[Black "Hernandez Guerrero, Eduardo"]
[Result "0-1"]
[ECO "A45"]
[WhiteElo "1707"]
[BlackElo "2232"]
[Annotator "ChessBase"]
[PlyCount "62"]
[EventDate "2022.04.12"]
[EventType "swiss"]
[EventCountry "MEX"]
[SourceTitle "playchess.com"]
[Source "ChessBase"]
[SourceQuality "1"]
[TimeControl "5400+30"]

1. d4 {[%emt 0:00:01]} Nf6 {[%emt 0:01:18]} 2. Bf4 {[%emt 0:00:07]} e6 {[%emt 0:01:57]} 3. e3 {[%emt 0:00:40]} b6 {[%emt 0:02:10]} 4. Qf3 {[%emt 0:04:35]} d5 {[%emt 0:03:06]} 5. Nd2 {[%emt 0:01:41]} Bb7 {[%emt 0:00:26]} 6. Bd3 {[%emt 0:00:14]} c5 {[%emt 0:02:24]} 7. c3 {[%emt 0:00:06]} Nbd7 {[%emt 0:00:06]} 8. Qh3 {[%emt 0:00:47]} Ne4 {[%emt 0:05:17]} 9. f3 {[%emt 0:05:07]} Nxd2 {[%emt 0:06:19]} 10. Kxd2 {[%emt 1:22:12]} a6 {[%emt 1:12:27]} 11. Ne2 {[%emt 0:00:00]} g5 {[%emt 0:00:00]} 12. Bg3 {[%emt 0:00:00]} h5 {[%emt 0:00:00]} 13. Bf2 {[%emt 0:00:00]} Nf6 {[%emt 0:00:00]} 14. g3 {[%emt 0:00:00]} Bg7 {[%emt 0:00:00]} 15. Qg2 {[%emt 0:00:00]} Qe7 {[%emt 0:00:00]} 16. e4 {[%emt 0:00:00]} g4 {[%emt 0:00:00]} 17. e5 {[%emt 0:00:00]} gxf3 {[%emt 0:00:00]} 18. Qxf3 {[%emt 0:00:00]} Ne4+ {[%emt 0:00:00]} 19. Bxe4 {[%emt 0:00:00]} dxe4 {[%emt 0:00:00]} 20. Qe3 {[%emt 0:00:00]} cxd4 {[%emt 0:00:00]} 21. cxd4 {[%emt 0:00:00]} Qb4+ {[%emt 0:00:00]} 22. Kc2 {[%emt 0:00:00]} Rc8+ {[%emt 0:00:00]} 23. Kb1 {[%emt 0:00:00]} Bh6 {[%emt 0:00:00]} 24. Nf4 {[%emt 0:00:00]} Bxf4 {[%emt 0:00:00]} 25. gxf4 {[%emt 0:00:00]} Rg8 {[%emt 0:00:00]} 26. Rc1 {[%emt 0:00:00]} Rxc1+ {[%emt 0:00:00]} 27. Kxc1 {[%emt 0:00:00]} Rg2 {[%emt 0:00:00]} 28. h4 {[%emt 0:00:00]} Qb5 {[%emt 0:00:00]} 29. Qe1 {[%emt 0:05:24]} e3 {[%emt 0:00:00]} 30. Qxe3 {[%emt 0:01:19]} Qf1+ {[%emt 0:00:00]} 31. Be1 {[%emt 0:01:53]} Re2 {[%emt 0:10:30]} 0-1

[Event "67th Mexican-ch Open 2022"]
[Site "Chihuahua"]
[Date "2022.04.14"]
[Round "3.21"]
[White "Lopez Raygoza, Luis Alberto"]
[Black "Villanueva De Leon, Vanessa"]
[Result "1-0"]
[ECO "B51"]
[WhiteElo "2207"]
[BlackElo "1729"]
[Annotator "TA"]
[PlyCount "63"]
[EventDate "2022.04.12"]
[EventType "swiss"]
[EventCountry "MEX"]
[SourceTitle "playchess.com"]
[Source "ChessBase"]
[SourceQuality "1"]
[TimeControl "5400+30"]

{[%evp 9,63,17,24,18,30,29,31,25,43,18,21,2,16,7,19,16,45,28,27,21,16,0,11,-2,18,-54,49,22,155,140,263,225,254,243,256,247,239,218,413,239,336,333,407,362,533,538,924,927,1125,1124,825,510,29984,1022,29990,1289]} 1. e4 {[%emt 0:02:34]} c5 {[%emt 0:00:07]} 2. Nf3 {[%emt 0:00:07]} d6 {[%emt 0:00:23]} 3. Bb5+ {[%emt 0:00:17]} Nd7 {[%emt 0:00:40]} 4. O-O {[%emt 0:00:19]} a6 {[%emt 0:02:45]} 5. Bd3 {[%emt 0:00:09]} Ngf6 {[%emt 0:01:24]} 6. Re1 {[%emt 0:00:33] B51: Sicilian: Moscow Variation (3 Bb5+) without 3...Bd7.} e5 {[%emt 0:01:21]} 7. a4 {[%emt 0:01:42]} Be7 {[%emt 0:01:47]} 8. c3 {[%emt 0:00:22] White is slightly better.} O-O {[%emt 0:01:38]} 9. Bc2 {[%emt 0:01:45]} Nb8 {[%emt 0:07:20]} 10. d4 {[%emt 0:03:56]} cxd4 {[%emt 0:00:30]} 11. cxd4 {[%emt 0:00:06]} Bg4 {[%emt 0:01:41]} 12. d5 {[%emt 0:01:29] [#] Against Nc6} Qc7 $146 {[%emt 0:04:20]} ({Predecessor:} 12... Nbd7 13. Na3 Rc8 14. h3 Bh5 15. b4 Bg6 16. a5 Nh5 17. Bd3 h6 18. Qb3 f5 19. exf5 Bxf5 20. Bxf5 Rxf5 {½-½ (29) Fister,B (2305)-Kuhne,D (2348) ICCF email 2014}) 13. Nc3 {[%emt 0:01:15]} Nbd7 {[%emt 0:04:33]} 14. Bd3 {[%emt 0:01:55]} Nc5 {[%emt 0:02:21]} 15. Bf1 {[%emt 0:00:05]} Rfc8 {[%emt 0:02:41]} 16. h3 {[%emt 0:01:15]} Bh5 {[%emt 0:01:57]} (16... Bxf3 $5 17. Qxf3 Qb6 $11) 17. Ra3 {[%emt 0:04:06] [#]} (17. g4 $11 Bg6 18. Nd2) 17... Bg6 {[%emt 0:05:19]} (17... Ncxe4 $1 $15 18. g4 Bg6) 18. Nd2 $1 $14 {[%emt 0:01:31]} Bxe4 {[%emt 0:07:39]} 19. b4 $16 {[%emt 0:06:48]} Bxd5 {[%emt 0:06:15]} (19... Nd3 $16 20. Ndxe4 Nxe1 21. Nxf6+ (21. Qxe1 Nxe4 22. Qxe4 Qd8 $16) 21... Bxf6) 20. Nxd5 $18 {[%emt 0:03:58]} Nxd5 {[%emt 0:00:06]} 21. bxc5 {[%emt 0:00:05]} Qxc5 {[%emt 0:01:07]} 22. Ne4 {[%emt 0:01:45]} Qc6 {[%emt 0:02:00]} 23. Bd2 {[%emt 0:01:08] Against Nb4} f5 $2 {[%emt 0:02:44] [#]} (23... Nc7 24. Qb1 (24. Rc3 Qd7 $18) 24... b5 25. axb5 axb5) 24. Nc3 {[%emt 0:00:51]} (24. Qb3 $142 $1) 24... Nxc3 {[%emt 0:03:29]} (24... Nf6 {keeps fighting.} 25. Rb3 Rc7) 25. Rxc3 {[%emt 0:00:25]} ({Don't do} 25. Bxc3 $6 h6 26. Bb2 Kh7 $18) 25... Qd7 {[%emt 0:02:04]} 26. Qb3+ {[%emt 0:00:41]} Kf8 {[%emt 0:01:32]} (26... Kh8 {might work better.} 27. Rxc8+ Qxc8) 27. Bc4 {[%emt 0:01:36][%cal Bf1c4,Bc4g8,Bg8h7][%mdl 32]} Rc7 {[%emt 0:01:11]} 28. Bg8 {[%emt 0:03:14][%csl Gg8][%cal Rb3f7] This bishop pair is nice.} Bf6 {[%emt 0:01:24]} 29. Rxc7 {[%emt 0:00:13]} Qxc7 {[%emt 0:00:04]} 30. Bxh7 {[%emt 1:01:20] Hoping for Qg8+.} Ke8 {[%emt 0:35:08] [#]} (30... Qf7 $18 31. Qb6 Be7 32. Qxb7 Re8) 31. g3 {[%emt 0:00:30]} (31. Rxe5+ $142 $3 {[%mdl 512]} Bxe5 32. Qg8+ Ke7 33. Bg5+ Bf6 34. Qxg7+ Kd8 35. Qxf6+ Kc8 36. Qf8+ Kd7 37. Qxf5+ Kc6 38. Qc2+ Kb6 39. a5+ Kb5 40. Qxc7) 31... Qd8 32. h4 {Weighted Error Value: White=0.36/Black=0.95} (32. Bg6+ $142 Kd7 33. Qxb7+ Qc7 34. Bxf5+ Kd8 {[#]} 35. Ba5 $1 {[%mdl 512]} Ke7 36. Bxc7 Bg5 37. Bxd6+ $1 {[%mdl 512]} Kxd6 38. Rd1+ Bd2 39. Rxd2+ Kc5 40. Rc2+ Kd6 41. Qd7#) 1-0

[Event "67th Mexican-ch Open 2022"]
[Site "Chihuahua"]
[Date "2022.04.14"]
[Round "3.22"]
[White "Mejia Nunez, Haziel"]
[Black "Flores Guerrero, Jesus Aldair"]
[Result "0-1"]
[ECO "B01"]
[WhiteElo "1611"]
[BlackElo "2251"]
[Annotator "ChessBase"]
[PlyCount "90"]
[EventDate "2022.04.12"]
[EventType "swiss"]
[EventCountry "MEX"]
[SourceTitle "playchess.com"]
[Source "ChessBase"]
[SourceQuality "1"]
[TimeControl "5400+30"]

1. e4 {[%emt 0:00:09]} d5 {[%emt 0:01:14]} 2. exd5 {[%emt 0:00:13]} Qxd5 {[%emt 0:00:07]} 3. Nc3 {[%emt 0:00:05]} Qa5 {[%emt 0:00:07]} 4. b4 {[%emt 0:15:17]} Qxb4 {[%emt 0:02:06]} 5. Rb1 {[%emt 0:00:06]} Qd6 {[%emt 0:00:30]} 6. Bc4 {[%emt 0:05:05]} Nf6 {[%emt 0:00:21]} 7. Qf3 {[%emt 0:07:01]} c6 {[%emt 0:07:40]} 8. d3 {[%emt 0:08:48]} e6 {[%emt 0:00:30]} 9. Bf4 {[%emt 0:09:18]} Qd8 {[%emt 0:03:44]} 10. Kf1 {[%emt 0:10:18]} Bd6 {[%emt 0:10:19]} 11. Nge2 {[%emt 0:09:58]} O-O {[%emt 0:03:30]} 12. h4 {[%emt 0:00:49]} Bxf4 {[%emt 0:02:15]} 13. Qxf4 {[%emt 0:00:10]} Nd5 {[%emt 0:00:08]} 14. Bxd5 {[%emt 0:01:19]} exd5 {[%emt 0:00:11]} 15. g4 {[%emt 0:00:47]} Na6 {[%emt 0:01:42]} 16. Qf3 {[%emt 0:04:18]} f5 {[%emt 0:03:48]} 17. g5 {[%emt 0:02:22]} Nc5 {[%emt 0:03:24]} 18. Nf4 {[%emt 0:01:09]} Ne6 {[%emt 0:02:36]} 19. Nce2 {[%emt 0:00:44]} b5 {[%emt 0:03:36]} 20. Nxe6 {[%emt 0:01:14]} Bxe6 {[%emt 0:00:12]} 21. Nd4 {[%emt 0:00:06]} Qd6 {[%emt 0:00:24]} 22. Nxe6 {[%emt 0:06:56]} Qxe6 {[%emt 0:01:35]} 23. Qe3 {[%emt 0:00:49]} Qxe3 {[%emt 0:05:20]} 24. fxe3 {[%emt 0:00:28]} Rae8 {[%emt 0:00:39]} 25. Ke2 {[%emt 0:00:52]} f4 {[%emt 0:02:19]} 26. Rh3 {[%emt 0:00:10]} Re7 {[%emt 0:00:09]} 27. Kd2 {[%emt 0:00:34]} fxe3+ {[%emt 0:00:20]} 28. Rxe3 {[%emt 0:00:47]} Rf2+ {[%emt 0:00:09]} 29. Ke1 {[%emt 0:00:06]} Rxe3+ {[%emt 0:02:37]} 30. Kxf2 {[%emt 0:00:46]} Rh3 {[%emt 0:00:09]} 31. Rb4 {[%emt 0:00:46]} Rh2+ {[%emt 0:00:21]} 32. Ke3 {[%emt 0:00:08]} Rxc2 {[%emt 0:00:20]} 33. a4 {[%emt 0:00:39]} a5 {[%emt 0:00:12]} 34. axb5 {[%emt 0:00:07]} axb4 {[%emt 0:01:08]} 35. b6 {[%emt 0:00:10]} Rc5 {[%emt 0:00:11]} 36. Kd4 {[%emt 0:03:36]} Rb5 {[%emt 0:00:09]} 37. b7 {[%emt 0:00:27]} b3 {[%emt 0:00:08]} 38. h5 {[%emt 0:00:27]} b2 {[%emt 0:00:08]} 39. g6 {[%emt 0:00:06]} b1=Q {[%emt 0:00:13]} 40. Ke5 {[%emt 0:00:53]} Qe1+ {[%emt 0:02:24]} 41. Kd6 {[%emt 0:00:38]} Kf8 {[%emt 0:01:54]} 42. Kxc6 {[%emt 0:03:33]} Qb4 {[%emt 0:00:36]} 43. d4 {[%emt 0:05:37]} Ke7 {[%emt 0:01:28]} 44. Kc7 {[%emt 0:03:16]} Rxb7+ {[%emt 0:00:18]} 45. Kc6 {[%emt 0:00:22]} Qb5# {[%emt 0:41:49]} 0-1

[Event "67th Mexican-ch Open 2022"]
[Site "Chihuahua"]
[Date "2022.04.14"]
[Round "3.23"]
[White "Blanco Fernandez, Alvaro"]
[Black "Baeza, Patricio"]
[Result "1-0"]
[ECO "E10"]
[WhiteElo "2216"]
[BlackElo "1711"]
[Annotator "TA"]
[PlyCount "61"]
[EventDate "2022.04.12"]
[EventType "swiss"]
[EventCountry "MEX"]
[SourceTitle "playchess.com"]
[Source "ChessBase"]
[SourceQuality "1"]
[TimeControl "5400+30"]

{[%evp 11,60,35,45,24,40,29,25,33,51,44,58,58,57,57,59,58,67,46,33,29,18,25,72,30,68,29,44,47,328,326,375,373,354,74,352,185,126,150,403,324,1734,1748,1632,1327,1318,1233,29996,29993,29993,29994,29999]} 1. Nf3 {[%emt 0:00:03]} Nf6 {[%emt 0:13:16]} 2. c4 {[%emt 0:00:14]} Nc6 {[%emt 0:00:10]} 3. d4 {[%emt 0:00:44][%cal Bd2d4,Bd4d5][%mdl 32]} e6 {[%emt 0:00:04]} 4. a3 {[%emt 0:00:08]} d6 {[%emt 0:00:11]} 5. Nc3 {[%emt 0:00:14]} g6 {[%emt 0:00:07]} 6. e4 {[%emt 0:01:22]} Bg7 {[%emt 0:00:05]} 7. d5 {[%emt 0:00:37] E10: Blumenfeld Gambit.} Nb8 {[%emt 0:04:48][%cal Bc6b8,Bb8d7,Bd7c5][%mdl 32]} 8. h3 {[%emt 0:02:57]} O-O {[%emt 0:00:40]} 9. Bd3 {[%emt 0:01:16] White has an edge.} a5 {[%emt 0:03:20]} 10. O-O {[%emt 0:00:37] [#]} exd5 $146 {[%emt 0:00:23]} ({Predecessor:} 10... e5 11. Rb1 Nh5 12. Re1 Nf4 13. Bf1 h6 14. Kh2 g5 15. g3 Ng6 16. Nd2 Nd7 {½-½ (34) Peek,M (2325)-Hausrath,D (2487) Vlissingen 2016}) 11. cxd5 {[%emt 0:00:58]} (11. Nxd5 Nbd7 $11) 11... Nbd7 {[%emt 0:01:41]} 12. Re1 {[%emt 0:00:16]} Nc5 {[%emt 0:00:59]} 13. Bc2 {[%emt 0:00:24]} Re8 {[%emt 0:00:35]} 14. Bg5 {[%emt 0:05:31][%cal Bc1g5,Bg5h4,Bh4g3][%mdl 32]} h6 {[%emt 0:05:27]} 15. Bh4 {[%emt 0:01:57]} g5 {[%emt 0:18:14]} 16. Bg3 {[%emt 0:00:46]} Nfd7 {[%emt 0:00:23]} (16... g4 $11) 17. Nd4 {[%emt 0:02:34]} Ne5 {[%emt 0:09:16]} 18. Qe2 {[%emt 0:04:49]} Ng6 {[%emt 0:04:59]} 19. Rad1 {[%emt 0:01:37]} f5 $2 {[%emt 0:10:59][%mdl 8192]} ({Better is} 19... a4 $14) 20. Qh5 $18 {[%emt 0:01:56]} Bxd4 {[%emt 0:14:36]} 21. Qxg6+ {[%emt 0:02:10]} ({Not} 21. Rxd4 Kg7 $16) 21... Bg7 {[%emt 0:00:06]} 22. exf5 {[%emt 0:00:14]} (22. e5 $18 {and the rest is easy.}) 22... Rf8 $2 {[%emt 0:00:03][%mdl 8192]} (22... Rxe1+ $16 23. Rxe1 Bd7) 23. Re6 {[%emt 0:08:49]} Bd7 {[%emt 0:06:58]} 24. Qh5 $40 {[%emt 0:05:09][%mdl 128] White wants a kill. 0x0.002ceff46a05dp-1022s more active pieces.} Qc8 $2 {[%emt 0:05:10]} (24... Nxe6 $16 {was called for.} 25. fxe6 Be8) 25. Rde1 {[%emt 0:03:34][%cal Bd1e1,Be1e3,Be3f3][%mdl 32]} Re8 $2 {[%emt 0:00:00]} (25... Nxe6 26. fxe6 (26. dxe6 Qe8 $18) 26... Qe8) 26. Qg6 {[%emt 0:04:09][%cal Of5f6] [#] White threatens f6! and mate.} Bxe6 {[%emt 0:00:00]} 27. fxe6 {[%emt 0:01:03]} Qd8 {[%emt 0:00:00]} 28. Re3 {[%emt 0:00:31] White wants to mate with Rf3.} Qe7 {[%emt 0:00:31]} 29. Qh7+ {[%emt 0:00:39] White mates.} Kf8 {[%emt 0:00:41]} 30. Rf3+ {[%emt 0:00:10]} Bf6 {[%emt 0:00:06]} 31. Qh8# {[%emt 0:01:06] Weighted Error Value: White=0.33/Black=0.82} 1-0